fUST/lending_fUST_20250709
["ID","MTS","AMOUNT","RATE_DAILY","PERIOD"]
[370442738,1752021035211,-193.08403378,0.00019178,2]
[370442739,1752021035221,-460.0,0.00019178,2]
[370442740,1752021035231,-460.0,0.00019178,2]
[370442741,1752021035241,-1225.51,0.00019178,2]
[370442742,1752021035251,-460.0,0.00019178,2]
[370442743,1752021035260,-460.0,0.00019178,2]
[370442744,1752021035269,-594.76,0.00019178,2]
[370442745,1752021035278,-1602.34,0.00019178,2]
[370442746,1752021035288,-460.0,0.00019178,2]
[370442747,1752021035297,-201.03521453,0.00019178,2]
[370442748,1752021035309,-460.0,0.00019178,2]
[370442749,1752021035318,-539.92607412,0.00019178,2]
[370442750,1752021035328,-476.05,0.00019178,2]
[370442751,1752021035338,-460.0,0.00019178,2]
[370442752,1752021035348,-460.0,0.00019178,2]
[370442753,1752021035357,-460.0,0.00019178,2]
[370442754,1752021035367,-2698.7,0.00019178,2]
[370442755,1752021035376,-1932.82,0.00019178,2]
[370442756,1752021035386,-858.7,0.00019178,2]
[370442757,1752021035395,-460.0,0.00019178,2]
[370442758,1752021035405,-460.0,0.00019178,2]
[370442759,1752021035414,-460.0,0.00019178,2]
[370442760,1752021035423,-460.0,0.00019178,2]
[370442761,1752021035433,-460.0,0.00019178,2]
[370442762,1752021035442,-474.00500026,0.00019178,2]
[370442763,1752021035457,-112.90499974,0.00019178,2]
[370442764,1752021035466,-460.0,0.00019178,2]
[370442765,1752021035476,-460.0,0.00019178,2]
[370442766,1752021035486,-460.0,0.00019178,2]
[370442767,1752021035496,-442.42500026,0.00019178,2]
[370442768,1752021035513,-17.57499974,0.00019178,2]
[370442769,1752021035522,-154.92080253,0.00019178,2]
[370442770,1752021035532,-211.62096615,0.00019178,2]
[370442771,1752021035543,-248.37903385,0.00019178,2]
[370442772,1752021035553,-460.0,0.00019178,2]
[370442773,1752021035563,-460.0,0.00019178,2]
[370442774,1752021035572,-460.0,0.00019178,2]
[370442775,1752021035581,-460.0,0.00019178,2]
[370442776,1752021035590,-696.66,0.00019178,2]
[370442777,1752021035600,-460.0,0.00019178,2]
[370442778,1752021035609,-414.15627213,0.00019178,2]
[370442779,1752021035626,-45.84372787,0.00019178,2]
[370442780,1752021035635,-460.0,0.00019178,2]
[370442781,1752021035646,-460.0,0.00019178,2]
[370442782,1752021035655,-460.0,0.00019178,2]
[370442783,1752021035665,-460.0,0.00019178,2]
[370442784,1752021035675,-74.21228019,0.00019178,2]
[370442785,1752021035686,-865.61771981,0.00019178,2]
[370442786,1752021035695,-140.51876222,0.00019178,2]
[370442829,1752021038654,-319.48123778,0.00019178,2]
[370442831,1752021038663,-460.0,0.00019178,2]
[370442833,1752021038672,-460.0,0.00019178,2]
[370442835,1752021038682,-763.99,0.00019178,2]
[370442837,1752021038691,-32.72433221,0.00019178,2]
[370442839,1752021038702,-427.27566779,0.00019178,2]
[370442841,1752021038712,-460.0,0.00019178,2]
[370442843,1752021038721,-523.87,0.00019178,2]
[370442845,1752021038730,-1011.07,0.00019178,2]
[370442847,1752021038739,-2995.84,0.00019178,2]
[370442849,1752021038749,-541.60539409,0.00019178,2]
[370442851,1752021038758,-460.0,0.00019178,2]
[370442853,1752021038767,-460.0,0.00019178,2]
[370442855,1752021038776,-460.0,0.00019178,2]
[370442857,1752021038785,-460.0,0.00019178,2]
[370442859,1752021038795,-460.0,0.00019178,2]
[370442861,1752021038804,-171.887736,0.00019178,2]
[370442863,1752021038813,-500.0,0.00019178,2]
[370442865,1752021038822,-313.29129362,0.00019352,2]
[370442867,1752021038832,-500.0,0.00019451,2]
[370442869,1752021038842,-460.0,0.00019452,2]
[370442871,1752021038851,-347.80446076,0.00019452,2]
[370442873,1752021038860,-460.0,0.00019452,2]
[370442875,1752021038871,-460.0,0.00019452,2]
[370442877,1752021038881,-460.0,0.00019452,2]
[370442879,1752021038890,-460.0,0.00019452,2]
[370442881,1752021038900,-460.0,0.00019452,2]
[370442883,1752021038910,-460.0,0.00019452,2]
[370442885,1752021038919,-460.0,0.00019452,2]
[370442887,1752021038929,-460.0,0.00019452,2]
[370442889,1752021038938,-460.0,0.00019452,2]
[370442891,1752021038948,-460.0,0.00019452,2]
[370442893,1752021038958,-332.94815065,0.00019452,2]
[370442895,1752021038967,-460.0,0.00019452,2]
[370442897,1752021038977,-469.34,0.00019452,2]
[370442899,1752021038987,-460.0,0.00019452,2]
[370442901,1752021038996,-460.0,0.00019452,2]
[370442903,1752021039007,-460.0,0.00019452,2]
[370442905,1752021039016,-460.0,0.00019452,2]
[370442907,1752021039026,-460.0,0.00019452,2]
[370442909,1752021039036,-452.60925844,0.00019452,2]
[370442911,1752021039045,-460.0,0.00019452,2]
[370442914,1752021039054,-460.0,0.00019452,2]
[370442915,1752021039064,-473.18,0.00019452,2]
[370442918,1752021039073,-460.0,0.00019452,2]
[370442920,1752021039083,-460.0,0.00019452,2]
[370442922,1752021039093,-460.0,0.00019452,2]
[370442924,1752021039102,-460.0,0.00019452,2]
[370442926,1752021039112,-460.0,0.00019452,2]
[370442928,1752021039121,-460.0,0.00019452,2]
[370442930,1752021039131,-460.0,0.00019452,2]
[370442932,1752021039141,-181.97164219,0.00019452,2]
[370442934,1752021039150,-460.0,0.00019452,2]
[370442936,1752021039160,-460.0,0.00019452,2]
[370442938,1752021039170,-460.0,0.00019452,2]
[370442940,1752021039180,-460.0,0.00019452,2]
[370442942,1752021039189,-460.0,0.00019452,2]
[370442944,1752021039199,-460.0,0.00019452,2]
[370442946,1752021039208,-460.0,0.00019452,2]
[370442948,1752021039218,-460.0,0.00019452,2]
[370442950,1752021039227,-460.0,0.00019452,2]
[370442952,1752021039237,-460.0,0.00019452,2]
[370442954,1752021039247,-460.0,0.00019452,2]
[370442957,1752021039256,-460.0,0.00019452,2]
[370442960,1752021039266,-460.0,0.00019452,2]
[370442963,1752021039276,-460.0,0.00019452,2]
[370442966,1752021039286,-460.0,0.00019452,2]
[370442968,1752021039295,-460.0,0.00019452,2]
[370442970,1752021039307,-465.82,0.00019452,2]
[370442972,1752021039317,-460.0,0.00019452,2]
[370442974,1752021039326,-460.0,0.00019452,2]
[370442976,1752021039335,-460.0,0.00019452,2]
[370442993,1752021039487,-460.0,0.00019452,2]
[370442995,1752021039497,-460.0,0.00019452,2]
[370442997,1752021039506,-460.0,0.00019452,2]
[370442999,1752021039515,-460.0,0.00019452,2]
[370443001,1752021039525,-460.0,0.00019452,2]
[370443003,1752021039534,-460.0,0.00019452,2]
[370443005,1752021039543,-230.31533964,0.00019452,2]
[370443007,1752021039552,-328.76327057,0.00019452,2]
[370443009,1752021039561,-460.0,0.00019452,2]
[370443011,1752021039571,-460.0,0.00019452,2]
[370443013,1752021039581,-460.0,0.00019452,2]
[370443015,1752021039590,-460.0,0.00019452,2]
[370443017,1752021039600,-460.0,0.00019452,2]
[370443019,1752021039610,-460.0,0.00019452,2]
[370443021,1752021039620,-582.79131054,0.00019452,2]
[370443023,1752021039630,-460.0,0.00019452,2]
[370443025,1752021039640,-460.0,0.00019452,2]
[370443027,1752021039650,-460.0,0.00019452,2]
[370443029,1752021039659,-460.0,0.00019452,2]
[370443031,1752021039669,-460.0,0.00019452,2]
[370443033,1752021039679,-522.68,0.00019452,2]
[370443035,1752021039689,-778.49,0.00019452,2]
[370443037,1752021039698,-460.0,0.00019452,2]
[370443039,1752021039709,-460.0,0.00019452,2]
[370443041,1752021039718,-460.0,0.00019452,2]
[370443043,1752021039728,-460.0,0.00019452,2]
[370443045,1752021039737,-460.0,0.00019452,2]
[370443047,1752021039747,-460.0,0.00019452,2]
[370443049,1752021039756,-460.0,0.00019452,2]
[370443051,1752021039766,-460.0,0.00019452,2]
[370443053,1752021039775,-460.0,0.00019452,2]
[370443055,1752021039784,-880.12,0.00019452,2]
[370443057,1752021039793,-515.27,0.00019452,2]
[370443059,1752021039803,-460.0,0.00019452,2]
[370443061,1752021039812,-460.0,0.00019452,2]
[370443063,1752021039822,-1463.54,0.00019452,2]
[370443065,1752021039831,-460.0,0.00019452,2]
[370443067,1752021039841,-460.0,0.00019452,2]
[370443069,1752021039850,-460.0,0.00019452,2]
[370443071,1752021039860,-518.38,0.00019452,2]
[370443073,1752021039869,-460.0,0.00019452,2]
[370443075,1752021039878,-460.0,0.00019452,2]
[370443077,1752021039888,-460.0,0.00019452,2]
[370443079,1752021039897,-460.0,0.00019452,2]
[370443081,1752021039906,-460.0,0.00019452,2]
[370443083,1752021039916,-460.0,0.00019452,2]
[370443085,1752021039925,-460.0,0.00019452,2]
[370443087,1752021039935,-460.0,0.00019452,2]
[370443089,1752021039944,-460.0,0.00019452,2]
[370443091,1752021039953,-460.0,0.00019452,2]
[370443093,1752021039963,-460.0,0.00019452,2]
[370443095,1752021039972,-460.0,0.00019452,2]
[370443097,1752021039981,-925.41,0.00019452,2]
[370443098,1752021039993,-670.89,0.00019452,2]
[370443100,1752021040003,-350.0,0.00019452,2]
[370443102,1752021040012,-498.65,0.00019452,2]
[370443104,1752021040022,-460.0,0.00019452,2]
[370443106,1752021040031,-460.0,0.00019452,2]
[370443108,1752021040040,-281.68,0.00019452,2]
[370443110,1752021040050,-2118.13,0.00019452,2]
[370443112,1752021040059,-1422.85,0.00019452,2]
[370443113,1752021040070,-460.0,0.00019452,2]
[370443115,1752021040079,-319.81666574,0.00019452,2]
[370443116,1752021040089,-460.0,0.00019452,2]
[370443117,1752021040098,-460.0,0.00019452,2]
[370443119,1752021040107,-460.0,0.00019452,2]
[370443121,1752021040117,-460.0,0.00019452,2]
[370443123,1752021040127,-460.0,0.00019452,2]
[370443125,1752021040137,-460.0,0.00019452,2]
[370443127,1752021040147,-460.0,0.00019452,2]
[370443129,1752021040156,-1350.58,0.00019452,2]
[370443130,1752021040166,-470.04,0.00019452,2]
[370443132,1752021040175,-460.0,0.00019452,2]
[370443135,1752021040185,-460.0,0.00019452,2]
[370443136,1752021040196,-460.0,0.00019452,2]
[370443138,1752021040205,-860.02,0.00019452,2]
[370443140,1752021040215,-460.0,0.00019452,2]
[370443142,1752021040224,-460.0,0.00019452,2]
[370443144,1752021040234,-460.0,0.00019452,2]
[370443146,1752021040243,-1225.51,0.00019452,2]
[370443148,1752021040253,-506.03649688,0.00019452,2]
[370443150,1752021040262,-594.76,0.00019452,2]
[370443152,1752021040272,-1602.34,0.00019452,2]
[370443154,1752021040281,-460.0,0.00019452,2]
[370443156,1752021040291,-460.0,0.00019452,2]
[370443158,1752021040300,-476.05,0.00019452,2]
[370443160,1752021040314,-460.0,0.00019452,2]
[370443162,1752021040323,-460.0,0.00019452,2]
[370443164,1752021040333,-2698.7,0.00019452,2]
[370443166,1752021040343,-1932.82,0.00019452,2]
[370443168,1752021040354,-858.7,0.00019452,2]
[370443170,1752021040363,-460.0,0.00019452,2]
[370443171,1752021040372,-460.0,0.00019452,2]
[370443172,1752021040384,-460.0,0.00019452,2]
[370443173,1752021040394,-586.91,0.00019452,2]
[370443175,1752021040404,-460.0,0.00019452,2]
[370443177,1752021040414,-460.0,0.00019452,2]
[370443178,1752021040423,-460.0,0.00019452,2]
[370443179,1752021040432,-460.0,0.00019452,2]
[370443180,1752021040442,-460.0,0.00019452,2]
[370443181,1752021040452,-460.0,0.00019452,2]
[370443182,1752021040461,-696.66,0.00019452,2]
[370443183,1752021040471,-460.0,0.00019452,2]
[370443184,1752021040479,-460.0,0.00019452,2]
[370443185,1752021040490,-320.03897064,0.00019452,2]
[370443186,1752021040500,-460.0,0.00019452,2]
[370443187,1752021040509,-460.0,0.00019452,2]
[370443188,1752021040519,-939.83,0.00019452,2]
[370443189,1752021040529,-460.0,0.00019452,2]
[370443190,1752021040538,-169.98,0.00019452,2]
[370443191,1752021040548,-763.99,0.00019452,2]
[370443192,1752021040558,-460.0,0.00019452,2]
[370443193,1752021040568,-523.87,0.00019452,2]
[370443194,1752021040578,-1011.07,0.00019452,2]
[370443195,1752021040587,-2995.84,0.00019452,2]
[370443196,1752021040597,-460.0,0.00019452,2]
[370443197,1752021040607,-460.0,0.00019452,2]
[370443198,1752021040617,-460.0,0.00019452,2]
[370443199,1752021040627,-305.16165788,0.00019495,2]
[370443200,1752021040636,-3219.54185696,0.00019626,2]
[370443201,1752021040646,-500.0,0.00019725,2]
[370443202,1752021040655,-289.58927936,0.00019725,2]
[370443203,1752021040665,-249.1535079,0.00019725,2]
[370443204,1752021040675,-500.0,0.00019725,2]
[370443205,1752021040685,-500.0,0.00019725,2]
[370443206,1752021040694,-500.0,0.00019725,2]
[370443207,1752021040705,-460.0,0.00019726,2]
[370443208,1752021040715,-460.0,0.00019726,2]
[370443209,1752021040725,-538.09417983,0.00019726,2]
[370443210,1752021040735,-460.0,0.00019726,2]
[370443211,1752021040744,-460.0,0.00019726,2]
[370443212,1752021040754,-460.0,0.00019726,2]
[370443213,1752021040763,-460.0,0.00019726,2]
[370443214,1752021040773,-460.0,0.00019726,2]
[370443215,1752021040782,-460.0,0.00019726,2]
[370443216,1752021040791,-460.0,0.00019726,2]
[370443217,1752021040802,-310.71229955,0.00019726,2]
[370443218,1752021040811,-460.0,0.00019726,2]
[370443219,1752021040821,-460.0,0.00019726,2]
[370443220,1752021040831,-460.0,0.00019726,2]
[370443221,1752021040840,-460.0,0.00019726,2]
[370443222,1752021040850,-460.0,0.00019726,2]
[370443223,1752021040860,-460.0,0.00019726,2]
[370443224,1752021040869,-473.18,0.00019726,2]
[370443225,1752021040879,-460.0,0.00019726,2]
[370443226,1752021040889,-460.0,0.00019726,2]
[370443228,1752021040898,-460.0,0.00019726,2]
[370443230,1752021040909,-460.0,0.00019726,2]
[370443232,1752021040918,-460.0,0.00019726,2]
[370443234,1752021040928,-460.0,0.00019726,2]
[370443235,1752021040937,-460.0,0.00019726,2]
[370443236,1752021040947,-460.0,0.00019726,2]
[370443237,1752021040957,-460.0,0.00019726,2]
[370443238,1752021040966,-203.97894514,0.00019726,2]
[370443239,1752021040976,-460.0,0.00019726,2]
[370443240,1752021040985,-460.0,0.00019726,2]
[370443241,1752021040995,-460.0,0.00019726,2]
[370443242,1752021041006,-460.0,0.00019726,2]
[370443243,1752021041015,-460.0,0.00019726,2]
[370443244,1752021041024,-460.0,0.00019726,2]
[370443245,1752021041034,-460.0,0.00019726,2]
[370443246,1752021041044,-460.0,0.00019726,2]
[370443247,1752021041053,-460.0,0.00019726,2]
[370443248,1752021041062,-460.0,0.00019726,2]
[370443249,1752021041071,-460.0,0.00019726,2]
[370443250,1752021041081,-460.0,0.00019726,2]
[370443251,1752021041089,-460.0,0.00019726,2]
[370443252,1752021041099,-465.82,0.00019726,2]
[370443253,1752021041109,-460.0,0.00019726,2]
[370443254,1752021041118,-460.0,0.00019726,2]
[370443255,1752021041127,-384.35112441,0.00019726,2]
[370443256,1752021041137,-460.0,0.00019726,2]
[370443257,1752021041146,-460.0,0.00019726,2]
[370443258,1752021041155,-460.0,0.00019726,2]
[370443259,1752021041164,-460.0,0.00019726,2]
[370443260,1752021041173,-460.0,0.00019726,2]
[370443261,1752021041183,-460.0,0.00019726,2]
[370443262,1752021041193,-306.00683556,0.00019726,2]
[370443263,1752021041202,-460.0,0.00019726,2]
[370443264,1752021041211,-460.0,0.00019726,2]
[370443265,1752021041220,-460.0,0.00019726,2]
[370443266,1752021041230,-460.0,0.00019726,2]
[370443267,1752021041239,-460.0,0.00019726,2]
[370443268,1752021041249,-460.0,0.00019726,2]
[370443269,1752021041258,-460.0,0.00019726,2]
[370443270,1752021041268,-460.0,0.00019726,2]
[370443271,1752021041277,-460.0,0.00019726,2]
[370443272,1752021041286,-522.68,0.00019726,2]
[370443273,1752021041296,-778.49,0.00019726,2]
[370443274,1752021041309,-460.0,0.00019726,2]
[370443275,1752021041318,-290.44314168,0.00019726,2]
[370443276,1752021041327,-460.0,0.00019726,2]
[370443277,1752021041338,-487.58207288,0.00019726,2]
[370443278,1752021041347,-460.0,0.00019726,2]
[370443279,1752021041356,-460.0,0.00019726,2]
[370443280,1752021041365,-460.0,0.00019726,2]
[370443281,1752021041374,-460.0,0.00019726,2]
[370443282,1752021041384,-880.12,0.00019726,2]
[370443283,1752021041393,-460.0,0.00019726,2]
[370443284,1752021041403,-1463.54,0.00019726,2]
[370443285,1752021041412,-460.0,0.00019726,2]
[370443286,1752021041421,-460.0,0.00019726,2]
[370443287,1752021041431,-460.0,0.00019726,2]
[370443288,1752021041440,-518.38,0.00019726,2]
[370443289,1752021041449,-460.0,0.00019726,2]
[370443290,1752021041458,-460.0,0.00019726,2]
[370443291,1752021041467,-460.0,0.00019726,2]
[370443292,1752021041476,-460.0,0.00019726,2]
[370443293,1752021041486,-460.0,0.00019726,2]
[370443294,1752021041495,-460.0,0.00019726,2]
[370443295,1752021041504,-460.0,0.00019726,2]
[370443296,1752021041513,-460.0,0.00019726,2]
[370443297,1752021041522,-460.0,0.00019726,2]
[370443298,1752021041532,-460.0,0.00019726,2]
[370443299,1752021041541,-460.0,0.00019726,2]
[370443300,1752021041550,-460.0,0.00019726,2]
[370443301,1752021041560,-925.41,0.00019726,2]
[370443302,1752021041569,-670.89,0.00019726,2]
[370443303,1752021041579,-498.65,0.00019726,2]
[370443304,1752021041588,-460.0,0.00019726,2]
[370443305,1752021041598,-460.0,0.00019726,2]
[370443306,1752021041607,-2118.13,0.00019726,2]
[370443307,1752021041618,-1422.85,0.00019726,2]
[370443308,1752021041627,-460.0,0.00019726,2]
[370443309,1752021041637,-460.0,0.00019726,2]
[370443310,1752021041646,-460.0,0.00019726,2]
[370443311,1752021041656,-460.0,0.00019726,2]
[370443312,1752021041666,-460.0,0.00019726,2]
[370443313,1752021041675,-460.0,0.00019726,2]
[370443314,1752021041685,-460.0,0.00019726,2]
[370443315,1752021041694,-460.0,0.00019726,2]
[370443316,1752021041705,-1350.58,0.00019726,2]
[370443317,1752021041714,-470.04,0.00019726,2]
[370443318,1752021041724,-460.0,0.00019726,2]
[370443319,1752021041734,-460.0,0.00019726,2]
[370443320,1752021041744,-460.0,0.00019726,2]
[370443321,1752021041753,-860.02,0.00019726,2]
[370443322,1752021041763,-460.0,0.00019726,2]
[370443323,1752021041772,-460.0,0.00019726,2]
[370443324,1752021041783,-460.0,0.00019726,2]
[370443325,1752021041793,-1225.51,0.00019726,2]
[370443326,1752021041802,-594.76,0.00019726,2]
[370443327,1752021041812,-1602.34,0.00019726,2]
[370443328,1752021041822,-460.0,0.00019726,2]
[370443329,1752021041832,-460.0,0.00019726,2]
[370443330,1752021041842,-476.05,0.00019726,2]
[370443331,1752021041886,-460.0,0.00019726,2]
[370443332,1752021041895,-460.0,0.00019726,2]
[370443333,1752021041906,-2698.7,0.00019726,2]
[370443334,1752021041915,-1932.82,0.00019726,2]
[370443335,1752021041925,-858.7,0.00019726,2]
[370443336,1752021041934,-241.15354051,0.00019726,2]
[370443337,1752021041945,-460.0,0.00019726,2]
[370443338,1752021041954,-460.0,0.00019726,2]
[370443339,1752021041964,-586.91,0.00019726,2]
[370443340,1752021041973,-460.0,0.00019726,2]
[370443341,1752021041982,-460.0,0.00019726,2]
[370443342,1752021041992,-460.0,0.00019726,2]
[370443343,1752021042002,-460.0,0.00019726,2]
[370443344,1752021042011,-460.0,0.00019726,2]
[370443345,1752021042020,-460.0,0.00019726,2]
[370443346,1752021042030,-696.66,0.00019726,2]
[370443347,1752021042040,-460.0,0.00019726,2]
[370443348,1752021042049,-460.0,0.00019726,2]
[370443349,1752021042058,-460.0,0.00019726,2]
[370443350,1752021042068,-460.0,0.00019726,2]
[370443351,1752021042077,-939.83,0.00019726,2]
[370443352,1752021042086,-460.0,0.00019726,2]
[370443353,1752021042096,-763.99,0.00019726,2]
[370443354,1752021042106,-460.0,0.00019726,2]
[370443355,1752021042115,-523.87,0.00019726,2]
[370443356,1752021042124,-1011.07,0.00019726,2]
[370443357,1752021042134,-2995.84,0.00019726,2]
[370443358,1752021042143,-460.0,0.00019726,2]
[370443359,1752021042152,-460.0,0.00019726,2]
[370443360,1752021042162,-460.0,0.00019726,2]
[370443361,1752021042171,-313.29129361,0.00019763,2]
[370443362,1752021042181,-500.0,0.00019835,2]
[370443363,1752021042191,-12586.7184932,0.00019887,2]
[370443364,1752021042200,-160.0,0.00019887,2]
[370443365,1752021042210,-215.2437778,0.00019887,2]
[370443366,1752021042219,-230.51100374,0.00019888,2]
[370443367,1752021042229,-837.89306043,0.00019888,2]
[370443368,1752021042238,-160.0,0.00019888,2]
[370443369,1752021042247,-160.0,0.00019888,2]
[370443370,1752021042257,-417.6386418,0.000199,2]
[370443371,1752021042266,-451.43604129,0.00019956,2]
[370443372,1752021042276,-500.0,0.00019973,2]
[370443373,1752021042285,-294.84165221,0.00019973,2]
[370443374,1752021042295,-82887.18687831,0.0001999,2]
[370443375,1752021042305,-460.0,0.0002,2]
[370443376,1752021042316,-538.09417983,0.0002,2]
[370443377,1752021042325,-460.0,0.0002,2]
[370443378,1752021042335,-460.0,0.0002,2]
[370443379,1752021042344,-460.0,0.0002,2]
[370443381,1752021042354,-319.3,0.0002,2]
[370443383,1752021042363,-460.0,0.0002,2]
[370443385,1752021042372,-460.0,0.0002,2]
[370443387,1752021042383,-460.0,0.0002,2]
[370443389,1752021042392,-460.0,0.0002,2]
[370443391,1752021042402,-460.0,0.0002,2]
[370443393,1752021042411,-460.0,0.0002,2]
[370443395,1752021042420,-460.0,0.0002,2]
[370443397,1752021042428,-460.0,0.0002,2]
[370443399,1752021042437,-473.18,0.0002,2]
[370443401,1752021042446,-460.0,0.0002,2]
[370443403,1752021042455,-460.0,0.0002,2]
[370443405,1752021042465,-407.30170349,0.0002,2]
[370443407,1752021042474,-600.62262217,0.0002,2]
[370443408,1752021042483,-460.0,0.0002,2]
[370443410,1752021042494,-460.0,0.0002,2]
[370443412,1752021042503,-460.0,0.0002,2]
[370443414,1752021042512,-460.0,0.0002,2]
[370443416,1752021042522,-460.0,0.0002,2]
[370443418,1752021042531,-221.64365544,0.0002,2]
[370443420,1752021042541,-460.0,0.0002,2]
[370443422,1752021042549,-256.775648,0.0002,2]
[370443424,1752021042559,-460.0,0.0002,2]
[370443426,1752021042568,-460.0,0.0002,2]
[370443428,1752021042578,-156.28,0.0002,2]
[370443430,1752021042587,-460.0,0.0002,2]
[370443432,1752021042596,-360.25,0.0002,2]
[370443433,1752021042605,-460.0,0.0002,2]
[370443435,1752021042614,-460.0,0.0002,2]
[370443437,1752021042623,-525.20988328,0.0002,2]
[370443439,1752021042632,-460.0,0.0002,2]
[370443441,1752021042641,-465.82,0.0002,2]
[370443443,1752021042650,-460.0,0.0002,2]
[370443445,1752021042659,-460.0,0.0002,2]
[370443447,1752021042669,-460.0,0.0002,2]
[370443449,1752021042679,-460.0,0.0002,2]
[370443451,1752021042689,-460.0,0.0002,2]
[370443453,1752021042698,-460.0,0.0002,2]
[370443455,1752021042708,-460.0,0.0002,2]
[370443457,1752021042718,-460.0,0.0002,2]
[370443459,1752021042727,-460.0,0.0002,2]
[370443461,1752021042738,-460.0,0.0002,2]
[370443463,1752021042747,-460.0,0.0002,2]
[370443465,1752021042757,-460.0,0.0002,2]
[370443467,1752021042767,-460.0,0.0002,2]
[370443469,1752021042777,-460.0,0.0002,2]
[370443471,1752021042787,-460.0,0.0002,2]
[370443473,1752021042797,-460.0,0.0002,2]
[370443475,1752021042807,-522.68,0.0002,2]
[370443477,1752021042817,-778.49,0.0002,2]
[370443479,1752021042826,-460.0,0.0002,2]
[370443481,1752021042836,-460.0,0.0002,2]
[370443483,1752021042846,-460.0,0.0002,2]
[370443485,1752021042855,-460.0,0.0002,2]
[370443487,1752021042865,-460.0,0.0002,2]
[370443488,1752021042874,-460.0,0.0002,2]
[370443489,1752021042884,-460.0,0.0002,2]
[370443490,1752021042893,-880.12,0.0002,2]
[370443491,1752021042903,-1463.54,0.0002,2]
[370443493,1752021042914,-460.0,0.0002,2]
[370443495,1752021042923,-460.0,0.0002,2]
[370443497,1752021042933,-460.0,0.0002,2]
[370443499,1752021042942,-518.38,0.0002,2]
[370443501,1752021042951,-460.0,0.0002,2]
[370443503,1752021042961,-460.0,0.0002,2]
[370443505,1752021042970,-460.0,0.0002,2]
[370443507,1752021042980,-460.0,0.0002,2]
[370443509,1752021042992,-460.0,0.0002,2]
[370443511,1752021043002,-460.0,0.0002,2]
[370443513,1752021043011,-460.0,0.0002,2]
[370443515,1752021043021,-460.0,0.0002,2]
[370443517,1752021043030,-460.0,0.0002,2]
[370443519,1752021043040,-460.0,0.0002,2]
[370443522,1752021043049,-460.0,0.0002,2]
[370443524,1752021043059,-460.0,0.0002,2]
[370443526,1752021043068,-925.41,0.0002,2]
[370443528,1752021043077,-670.89,0.0002,2]
[370443530,1752021043087,-498.65,0.0002,2]
[370443532,1752021043096,-460.0,0.0002,2]
[370443534,1752021043105,-460.0,0.0002,2]
[370443536,1752021043115,-2118.13,0.0002,2]
[370443538,1752021043124,-1422.85,0.0002,2]
[370443540,1752021043133,-460.0,0.0002,2]
[370443542,1752021043143,-460.0,0.0002,2]